bitfinex/quotes_ETHUSD_20250711
["timestamp","ask_amount","ask_price","bid_price","bid_amount"]
[1752211659255,0.002,2992.3,2992.2,25.12369133]
[1752211660066,0.002,2992.3,2992.2,25.95399133]
[1752211661050,0.002,2992.9,2992.8,0.55]
[1752211661274,0.002,2992.9,2992.8,21.22866874]
[1752211662053,0.002,2992.9,2992.8,25.12002131]
[1752211662387,0.002,2993.3,2993.2,21.82928102]
[1752211662554,0.002,2993.3,2993.2,33.05694976]
[1752211663282,0.002,2993.3,2993.2,29.71604371]
[1752211663463,0.002,2993.3,2993.2,33.05694976]
[1752211663792,0.002,2993.3,2993.2,33.60694976]
[1752211664157,0.002,2993.3,2993.2,33.86278067]
[1752211664359,0.002,2993.3,2993.2,34.66108067]
[1752211665787,0.7801,2994.7,2993.8,13.89023648]
[1752211666087,0.7801,2994.7,2993.8,33.73661145]
[1752211666267,0.7801,2994.7,2993.8,33.90301145]
[1752211667185,0.1864,2994.9,2993.8,34.38728019]
[1752211667363,0.7907,2994.4,2993.8,21.358]
[1752211667566,0.7907,2994.8,2993.8,30.39637497]
[1752211667890,0.02,2994.9,2994.2,14.65199026]
[1752211668069,0.02,2994.9,2994.2,33.71236523]
[1752211668264,0.02,2994.9,2994.2,21.8842]
[1752211668464,0.02,2994.9,2994.2,22.048755]
[1752211668670,0.02,2994.9,2994.2,25.38854526]
[1752211669891,0.02,2994.9,2994.2,22.048755]
[1752211670100,0.7907,2994.5,2994.2,10.0]
[1752211672965,0.7907,2994.5,2994.2,10.30185427]
[1752211674400,0.7907,2994.8,2994.2,10.30185427]
[1752211677502,0.1684,2994.3,2994.2,10.30185427]
[1752211678076,0.002,2994.3,2994.2,10.30185427]
[1752211682201,0.002,2994.3,2994.2,19.37607993]
[1752211682403,0.002,2994.3,2994.2,10.75528967]
[1752211682702,0.002,2994.3,2994.2,15.58285427]
[1752211682889,0.002,2994.3,2994.2,10.30185427]
[1752211683217,0.002,2994.3,2994.2,15.58285427]
[1752211684115,0.002,2994.3,2994.2,10.30280926]
[1752211684280,0.002,2994.3,2994.2,0.30280926]
[1752211685697,0.002,2994.3,2994.2,0.33620716]
[1752211686496,0.002,2994.3,2994.2,10.50260716]
[1752211686695,0.002,2994.3,2994.2,10.46920926]
[1752211687417,0.002,2994.3,2994.2,10.92264466]
[1752211688130,0.002,2994.3,2994.2,23.30080989]
[1752211688487,0.002,2994.3,2994.2,0.46920926]
[1752211689023,0.002,2994.3,2994.2,0.30280926]
[1752211691583,0.8168,2994.3,2994.2,0.30280926]
[1752211696513,0.1664,2994.2,2993.7,0.03340348]
[1752211696717,0.1664,2994.2,2993.9,0.1664]
[1752211696918,0.1664,2994.2,2993.6,0.8016]
[1752211697225,0.1664,2994.2,2993.6,0.1664]
[1752211698145,0.1664,2994.2,2993.8,0.816]
[1752211698304,0.1664,2994.2,2993.9,0.03340124]
[1752211699441,0.1664,2994.2,2993.8,1.4358354]
[1752211699645,0.1664,2994.2,2993.5,5.277]
[1752211699945,0.1664,2994.2,2993.6,0.1664]
[1752211700305,0.8313,2994.1,2993.2,0.25583091]
[1752211700507,0.1664,2993.8,2993.2,0.1664]
[1752211701214,0.1664,2993.8,2993.3,0.03340794]
[1752211701536,0.1664,2994.0,2993.4,0.1664]
[1752211702311,0.1664,2994.0,2993.5,0.03340571]
[1752211704719,0.1664,2994.0,2993.4,0.1664]
[1752211705346,0.1664,2994.0,2993.5,0.001]
[1752211706359,0.1664,2993.6,2993.5,0.001]
[1752211708779,0.9695,2993.6,2993.5,0.001]
[1752211720278,6.2425,2993.6,2993.5,0.001]
[1752211721577,0.9695,2993.6,2993.5,0.001]
[1752211722355,0.1664,2993.6,2993.5,0.001]
[1752211722556,5.4384,2993.8,2993.5,0.03440571]
[1752211722896,0.1664,2993.8,2993.5,10.03440571]
[1752211723104,0.1664,2993.8,2993.5,10.001]
[1752211723270,0.002,2994.3,2993.5,10.001]
[1752211723467,0.1664,2994.1,2993.5,10.1674]
[1752211724282,0.1664,2994.1,2993.5,0.1674]
[1752211724683,0.002,2994.3,2993.5,0.001]
[1752211724684,0.1664,2993.8,2993.5,0.001]
[1752211727285,0.002,2994.3,2993.6,0.8268]
[1752211727486,0.002,2994.3,2993.7,0.03340348]
[1752211728363,0.002,2994.3,2993.6,0.8268]
[1752211729563,0.002,2994.3,2993.5,0.001]
[1752211729564,0.7941,2994.2,2993.5,0.001]
[1752211730770,5.27,2994.5,2993.5,0.001]
[1752211730771,3.97619479,2994.5,2993.5,0.001]
[1752211730966,3.97619479,2994.5,2994.2,10.0]
[1752211731171,0.39761948,2994.4,2994.2,10.0]
[1752211731977,0.39761948,2994.4,2993.5,0.001]
[1752211732306,0.39761948,2994.4,2993.8,8.47876517]
[1752211732307,5.269,2994.3,2993.8,8.47876517]
[1752211732518,5.269,2994.3,2993.9,10.0]
[1752211733078,3.35905482,2994.9,2994.2,8.47876517]
[1752211733380,8.60712985,2994.8,2994.2,8.47876517]
[1752211733801,0.7941,2994.6,2994.2,8.47876517]
[1752211733972,0.41333558,2994.5,2994.2,8.47876517]
[1752211734172,0.7941,2994.6,2994.2,8.47876517]
[1752211735401,5.268,2994.5,2994.2,8.47876517]
[1752211737305,5.267,2994.4,2994.2,8.47876517]
[1752211738901,5.267,2994.4,2993.6,10.0]
[1752211738902,0.1664,2994.2,2993.6,10.0]
[1752211739100,5.267,2994.4,2993.6,10.0]
[1752211739101,0.1664,2993.8,2993.6,10.0]
[1752211739277,5.267,2993.7,2993.6,10.0]
[1752211739675,0.793,2994.1,2993.6,10.0]
[1752211739885,0.793,2994.1,2994.0,8.47876517]
[1752211740105,6.059,2994.1,2994.0,8.47876517]
[1752211740975,0.1664,2994.0,2993.6,10.0]
[1752211741210,3.33914614,2994.8,2993.6,10.0]
[1752211741211,0.8248,2994.7,2993.6,10.0]
[1752211741378,5.266,2994.6,2993.6,10.7777]
[1752211741580,0.02,2994.9,2993.6,10.0]
[1752211741784,0.02,2994.9,2994.5,10.0]
[1752211742312,0.1664,2994.6,2994.5,10.0]
[1752211745502,0.1664,2994.6,2994.3,0.7777]
[1752211745702,0.1664,2994.4,2994.3,0.7777]
[1752211745903,0.1664,2994.4,2994.1,10.0]
[1752211746104,0.7976,2994.7,2994.0,10.7682]
[1752211746301,0.1664,2994.2,2994.0,0.7682]
[1752211747029,0.9729,2994.2,2993.5,0.7722]
[1752211747328,0.1664,2993.6,2993.5,0.001]
[1752211753705,0.15904641,2993.6,2993.5,0.001]
[1752211760457,3.49950605,2993.6,2993.5,0.001]
[1752211761055,5.262,2994.0,2993.6,10.0]
[1752211761223,5.262,2994.0,2993.8,5.65449848]
[1752211761224,5.262,2993.9,2993.8,5.65449848]
[1752211761411,5.262,2993.9,2993.7,10.0]
[1752211761841,5.261,2993.8,2993.7,10.0]
[1752211762138,5.261,2993.8,2993.5,0.001]
[1752211762139,0.8036,2993.8,2993.5,0.001]
[1752211762455,5.261,2993.7,2993.5,0.001]
[1752211765245,0.7609,2994.6,2993.5,0.001]
[1752211765421,5.26,2994.5,2993.5,0.001]
[1752211765772,5.26,2994.4,2993.5,0.001]
[1752211765945,0.93603673,2994.3,2993.5,0.001]
[1752211766325,5.26,2994.2,2993.5,0.001]
[1752211768329,5.259,2994.1,2993.5,0.001]
[1752211768530,5.259,2994.0,2993.5,0.001]
[1752211768815,0.7609,2994.5,2993.5,0.001]
[1752211769048,5.259,2994.4,2993.5,0.001]
[1752211769242,0.002,2994.2,2993.5,0.001]
[1752211769454,0.002,2994.2,2993.6,0.8164]
[1752211769663,5.259,2994.1,2993.6,0.8164]
[1752211770464,0.002,2994.2,2993.6,0.8164]
[1752211771121,5.259,2994.1,2993.6,0.8164]
[1752211772113,5.259,2994.0,2993.6,0.8164]
[1752211772922,0.1664,2993.6,2993.5,0.001]
[1752211778527,0.1664,2993.6,2993.5,0.7985]
[1752211780929,0.002,2994.2,2993.7,3.34026148]
[1752211781166,0.002,2994.2,2994.0,10.0]
[1752211781472,0.002,2994.2,2994.1,0.8126]
[1752211781653,0.002,2994.2,2993.6,10.0]
[1752211781852,0.002,2994.2,2993.8,10.7978]
[1752211781853,0.1664,2994.0,2993.8,10.7978]
[1752211782557,0.1664,2994.0,2993.9,8.47922546]
[1752211784967,0.1664,2994.0,2993.9,5.64978561]
[1752211787155,0.1664,2994.0,2993.8,10.7978]
[1752211787357,0.002,2994.2,2993.8,10.7978]
[1752211787741,0.002,2994.2,2994.1,10.0]
[1752211790489,0.1664,2994.1,2994.0,15.64978561]
[1752211792158,0.1664,2994.1,2994.0,10.0]
[1752211793797,0.1664,2994.1,2994.0,15.64978561]
[1752211797977,0.1664,2994.1,2994.0,16.44998561]
[1752211798380,0.1664,2994.1,2994.0,26.95098561]
[1752211798684,0.1664,2994.1,2994.0,21.3012]
[1752211798877,0.1664,2994.1,2994.0,16.44998561]
[1752211799076,0.1664,2994.1,2994.0,15.64978561]
[1752211802514,0.002,2994.2,2994.0,15.64978561]
[1752211802515,0.002,2994.2,2994.1,10.0]
[1752211802816,0.002,2994.2,2994.1,14.1409018]
[1752211803917,0.002,2994.2,2994.1,10.801]
[1752211804620,0.002,2994.2,2994.1,14.1409018]
[1752211805025,0.1664,2994.6,2994.5,16.42228561]
[1752211807998,0.1664,2994.6,2994.5,26.91528561]
[1752211810191,0.02,2994.9,2994.7,3.33915597]
[1752211810524,0.02,2994.9,2994.8,15.64978561]
[1752211811625,0.02,2994.9,2994.3,16.89328561]
[1752211811829,0.1664,2994.5,2994.3,5.64978561]
[1752211811998,0.02,2994.9,2994.3,5.64978561]
[1752211812195,0.02,2994.9,2994.6,5.64978561]
[1752211814493,0.1864,2994.9,2994.7,10.8276]
[1752211815700,0.1664,2994.9,2994.7,10.8276]
[1752211815925,0.1664,2994.9,2994.8,15.64978561]
[1752211818314,0.002,2995.4,2995.0,0.7501]
[1752211818520,0.002,2995.4,2995.2,10.0]
[1752211819434,0.1664,2995.3,2995.2,10.0]
[1752211819634,0.002,2995.4,2995.2,10.0]
[1752211822212,0.002,2995.4,2994.3,10.0]
[1752211822213,0.1664,2995.2,2994.3,10.0]
[1752211822437,0.7625,2995.2,2994.6,5.64978561]
[1752211822635,0.7625,2995.2,2994.7,10.0]
[1752211822809,0.7625,2995.2,2994.6,5.64978561]
[1752211823009,6.0035,2995.2,2994.6,5.64978561]
[1752211823233,6.60405,2995.2,2994.6,5.64978561]
[1752211823607,6.60405,2995.2,2994.7,10.0]
[1752211823932,0.1664,2994.6,2994.3,5.64978561]
[1752211824111,0.1664,2994.5,2994.3,5.64978561]
[1752211824307,0.1664,2994.5,2994.4,10.0]
[1752211824937,0.1664,2994.5,2993.9,0.7678]
[1752211825136,0.1664,2994.1,2993.9,0.7678]
[1752211825634,0.1664,2994.1,2993.9,10.7678]
[1752211826015,0.1664,2994.1,2993.9,0.7678]
[1752211826341,0.1664,2994.6,2994.1,0.7934]
[1752211826532,0.1664,2994.6,2994.5,8.47468453]
[1752211826913,0.1664,2994.6,2994.5,18.47468453]
[1752211827330,0.1664,2994.6,2994.5,19.23488453]
[1752211828521,0.002,2995.4,2994.5,19.23488453]
[1752211828522,5.241,2995.4,2994.6,10.0]
[1752211828832,0.002,2995.4,2995.0,10.0]
[1752211829445,0.1664,2995.1,2995.0,10.7775]
[1752211829640,0.1664,2995.3,2995.0,10.7775]
[1752211831228,0.1664,2995.3,2995.1,0.03338786]
[1752211831616,0.002,2995.4,2995.0,10.7775]
[1752211832045,0.1664,2995.3,2995.0,10.7775]
[1752211833944,0.1664,2995.1,2994.7,10.0]
[1752211834111,0.1664,2995.1,2994.8,0.001]
[1752211834317,0.7738,2995.4,2994.8,0.001]
[1752211834721,0.7738,2995.4,2995.0,10.0]
[1752211837264,6.0098,2995.4,2995.0,10.0]
[1752211838153,0.7738,2995.4,2995.0,10.0]
[1752211838451,0.002,2995.8,2995.6,0.7756]
[1752211838659,0.002,2995.8,2995.1,0.89247387]
[1752211838660,0.002,2995.8,2995.7,30.84776646]
[1752211838823,0.002,2995.8,2995.7,29.72228453]
[1752211839151,0.002,2995.8,2995.7,21.2476]
[1752211839522,0.02,2996.9,2995.9,0.7986]
[1752211839721,0.02,2996.9,2996.8,10.0]
[1752211840222,0.7758,2998.3,2996.9,0.55]
[1752211840455,0.18694217,2997.8,2997.7,19.23158453]
[1752211840657,0.0008,2998.8,2997.2,10.71795132]
[1752211840658,0.7758,2998.5,2997.2,10.71795132]
[1752211840908,3.3354619,2998.1,2996.9,10.0]
[1752211841153,4.1115966,2997.8,2996.6,10.0]
[1752211841324,6.0098,2997.8,2996.6,10.0]
[1752211841520,0.55,2997.7,2996.1,8.47468453]
[1752211841725,0.55,2997.7,2996.0,0.7569]
[1752211841726,0.7758,2997.4,2996.0,0.7569]
[1752211841950,0.7758,2997.4,2994.8,0.001]
[1752211841951,3.33698501,2996.8,2995.4,5.9909]
[1752211842158,5.5676985,2996.7,2995.5,0.59909]
[1752211842457,0.3336985,2996.7,2995.6,8.47468453]
[1752211842658,5.234,2996.6,2995.6,8.47468453]
[1752211842857,3.33722676,2996.5,2995.4,0.7569]
[1752211843173,4.15353591,2996.5,2995.4,0.7569]
[1752211843526,0.8162,2996.5,2995.4,0.7569]
[1752211843771,4.15351305,2996.5,2995.4,0.7569]
[1752211844060,0.9387513,2996.4,2995.4,0.7569]
[1752211844233,5.234,2996.3,2995.4,0.7569]
[1752211844666,5.234,2996.3,2995.4,0.79028452]
[1752211844963,0.9387513,2996.4,2995.7,10.0]
[1752211845171,5.234,2996.3,2995.7,10.0]
[1752211845646,5.234,2996.4,2995.7,10.0]
[1752211846161,0.8162,2996.5,2995.7,10.0]
[1752211846162,6.0502,2996.5,2995.7,10.0]
[1752211846353,3.33742467,2996.4,2995.5,10.0]
[1752211846550,6.0502,2996.5,2995.5,10.0]
[1752211846551,0.93876247,2996.3,2995.5,10.0]
[1752211846729,0.8162,2996.5,2995.9,10.0]
[1752211846730,5.234,2996.2,2995.9,10.0]
[1752211846931,3.33680054,2996.9,2995.9,10.0]
[1752211847135,3.33680054,2996.9,2995.4,0.7569]
[1752211847136,5.234,2996.8,2995.5,5.234]
[1752211847468,0.8007,2997.4,2996.8,10.0]
[1752211847667,0.8207,2997.9,2997.2,10.0]
[1752211847975,0.90287,2997.9,2997.6,10.0]
[1752211848179,0.02,2997.9,2997.6,10.0]
[1752211848483,0.02,2997.9,2997.7,0.7164]
[1752211848681,0.02,2997.9,2997.8,0.58335779]
[1752211848833,0.02,2997.9,2997.8,1.4664]
[1752211849038,0.00556565,2999.0,2997.9,0.75]
[1752211849273,3.41433845,3001.0,2997.9,0.75]
[1752211849274,1.90306495,3001.6,3001.5,6.84866749]
[1752211849445,2.4055784,3005.3,3001.6,39.1456727]
[1752211849799,0.8474593,3009.0,3001.6,39.1456727]
[1752211849800,5.94594845,3007.6,3005.3,33.82745482]
[1752211849971,0.0276593,3009.0,3006.5,23.978347]
[1752211849972,5.89594845,3008.6,3006.5,23.978347]
[1752211850264,0.0276593,3009.0,3005.4,6.94971795]
[1752211850265,1e-08,3008.0,3007.9,0.75]
[1752211850471,0.0276593,3009.0,3007.9,0.01984422]
[1752211850679,0.0276593,3009.0,3004.7,3.32807746]
[1752211850830,1.38876593,3008.9,3007.1,0.712005]
[1752211851036,14.234,3008.8,3007.1,0.712005]
[1752211851338,0.787,3010.0,3007.1,0.712005]
[1752211851339,9.7164533,3009.5,3007.2,0.67892431]
[1752211851580,9.7164533,3009.5,3008.1,14.20903098]
[1752211851883,14.441,3009.4,3008.2,0.67892431]
[1752211852183,14.441,3009.4,3009.2,11.84085915]
[1752211852336,1.27729823,3009.3,3008.1,14.20903098]
[1752211852539,1.27729823,3009.3,3008.2,0.67567991]
[1752211852742,1.27729823,3009.3,3008.3,0.67567991]
[1752211852938,3.32325279,3009.1,3008.4,0.67567991]
[1752211853174,15.03,3009.2,3008.1,14.20903098]
[1752211853470,3.32516925,3007.4,3007.2,17.3348024]
[1752211853648,31.43081717,3007.3,3007.2,4.51046761]
[1752211853835,30.0,3007.2,3006.7,7.29846261]
[1752211854036,0.7783,3005.2,3005.1,9.83661103]
[1752211854235,30.0,3005.1,3002.0,0.7862]
[1752211854537,0.0829,3003.5,3003.3,0.84203778]
[1752211854739,9.3174475,3003.2,3003.1,1.12236185]
[1752211855049,3.3308366,3002.3,2999.4,0.7534]
[1752211855258,15.205,3002.2,3000.3,0.41245517]
[1752211855561,15.205,3002.2,3000.0,9.3174475]
[1752211855562,15.226,3002.1,3000.4,0.29659664]
[1752211855761,16.7876,3002.0,3000.5,0.47454749]
[1752211855961,16.7876,3002.0,3000.6,0.47454749]
[1752211855962,23.274,3001.9,3000.6,0.47454749]
[1752211856272,15.282,3001.9,3000.7,0.50787304]
[1752211856569,1.26471608,3003.1,3001.8,9.3174475]
[1752211856744,3.32888394,3004.1,3001.9,9.53770825]
[1752211856745,7.995,3003.6,3001.9,9.53770825]
[1752211856947,7.995,3003.6,3002.0,0.17795085]
[1752211857134,0.0829,3005.6,3002.6,9.32644517]
[1752211857340,1.682,3005.1,3002.7,0.17795085]
[1752211857548,30.0,3005.0,3002.2,0.7757]
[1752211857872,3.32881149,3004.1,3002.3,0.21099214]
[1752211858188,7.995,3005.5,3002.6,9.23157061]
[1752211858370,7.722,3005.4,3002.7,0.21098771]
[1752211858581,7.995,3005.5,3003.2,9.23157061]
[1752211858582,1.5717,3005.3,3003.2,9.23157061]
[1752211858883,3.32761507,3005.2,3003.3,0.0332967]
[1752211859066,9.3137,3005.3,3002.8,0.94425583]
[1752211859271,0.1664,3004.6,3004.1,0.1664]
[1752211859449,9.3137,3005.3,3004.4,0.1664]
[1752211859450,0.1656,3004.9,3004.4,0.1664]
[1752211859657,7.735,3005.0,3004.0,0.8089]
[1752211859857,8.6741,3005.0,3004.5,0.1664]
[1752211860071,8.5085,3005.0,3004.0,0.8089]
[1752211860279,0.1664,3004.5,3004.0,0.1664]
[1752211860460,3.40923871,3006.4,3004.1,0.03328783]
[1752211860639,3.40923871,3006.4,3003.5,0.41197517]
[1752211860640,7.742,3005.4,3003.5,0.41197517]
[1752211860840,3.32790766,3004.9,3004.7,0.1664]
[1752211861038,1.5737,3005.3,3003.8,0.1664]
[1752211861039,0.1664,3004.7,3003.8,0.1664]
[1752211861297,0.1664,3004.0,3003.1,0.8087]
[1752211861592,0.1664,3004.0,3003.4,0.1664]
[1752211861593,7.797,3003.9,3003.4,0.1664]
[1752211861743,7.991,3003.9,3001.3,0.8087]
[1752211861948,8.6101,3003.8,3001.4,9.73876869]
[1752211862158,8.6101,3003.8,3001.5,0.17770111]
[1752211862490,4.12823144,3003.8,3002.0,9.23157061]
[1752211862674,7.991,3003.9,3002.1,0.21101422]
[1752211862873,7.991,3003.9,3002.6,9.23157061]
[1752211863079,7.991,3005.1,3003.4,0.55]
[1752211863264,7.991,3005.1,3003.6,0.55]
[1752211863460,7.991,3005.1,3003.3,10.0]
[1752211863461,7.819,3005.0,3003.3,0.55]
[1752211863651,4.90900622,3004.9,3003.3,0.55]
[1752211863850,1.581,3004.9,3003.2,0.55]
[1752211864048,3.32800851,3004.8,3003.4,0.55]
[1752211864291,1.581,3004.9,3003.5,0.03329448]
[1752211864647,1.581,3004.9,3003.2,2.23339987]
[1752211864648,1.581,3004.9,3003.2,0.55]
[1752211864851,0.94,3004.8,3002.7,3.33022893]
[1752211865080,0.94,3004.8,3002.5,3.88054763]
[1752211865081,0.94,3004.8,3002.9,0.55]
[1752211865282,7.805,3004.7,3003.1,0.55]
[1752211865463,6.28723064,3004.7,3003.3,0.55]
[1752211865664,7.89633054,3005.1,3003.5,0.55]
[1752211865665,0.62872306,3004.6,3003.5,0.55]
[1752211865899,7.89633054,3005.1,3003.6,0.50672974]
[1752211866085,7.813,3005.0,3003.8,10.55]
[1752211866287,7.813,3005.0,3003.9,1.14209437]
[1752211866585,7.813,3005.0,3003.8,0.55]
[1752211866586,7.89633054,3005.1,3004.1,0.55]
[1752211866752,7.804,3005.0,3004.3,0.55]
[1752211866956,7.804,3005.0,3004.4,0.50551781]
[1752211867172,7.804,3005.0,3004.5,0.4722333]
[1752211867372,14.5,3006.8,3004.6,0.20968978]
[1752211867580,14.5,3006.8,3004.4,0.55]
[1752211867581,3.32677955,3006.0,3004.4,0.55]
[1752211867784,9.439,3006.7,3005.2,0.55]
[1752211867985,9.439,3006.7,3005.3,0.03327454]
[1752211867986,7.795,3006.6,3005.3,0.03327454]
[1752211868296,9.439,3006.7,3005.6,10.0]
[1752211868464,7.812,3007.2,3005.8,0.55]
[1752211868656,7.812,3007.2,3006.2,0.55]
[1752211868657,0.7812,3007.1,3006.2,0.55]
[1752211868858,7.988,3007.9,3006.4,0.55]
[1752211869056,7.988,3007.9,3006.5,0.03326126]
[1752211869254,7.988,3007.9,3006.6,0.55]
[1752211869456,7.988,3007.9,3007.2,0.55]
[1752211869657,7.988,3009.0,3007.2,0.55]
[1752211869958,7.988,3009.0,3006.9,0.782]
[1752211869959,0.7988,3008.9,3007.3,0.70080437]
[1752211870180,0.7988,3008.9,3006.9,0.782]
[1752211870181,7.816,3009.2,3008.0,10.0]
[1752211870391,7.817,3009.1,3008.1,1.21755196]
[1752211870692,7.817,3009.1,3007.6,10.0]
[1752211870693,0.30163862,3009.0,3008.2,0.66755196]
[1752211870993,7.817,3009.1,3008.3,0.66755196]
[1752211871169,7.817,3009.1,3008.4,0.66755196]
[1752211871170,3.32349993,3008.9,3008.4,0.66755196]
[1752211871494,7.817,3009.1,3007.6,0.55]
[1752211871495,0.33234999,3008.8,3008.5,0.66755196]
[1752211871698,7.988,3009.8,3008.6,0.66636452]
[1752211871914,3.32275219,3009.6,3008.7,0.69960146]
[1752211872223,0.2512,3010.6,3008.8,0.69933131]
[1752211872224,7.808,3009.5,3008.8,0.69933131]
[1752211872377,0.1656,3009.2,3008.8,0.03323584]
[1752211872582,3.32223943,3010.1,3007.8,0.1656]
[1752211872583,0.1656,3008.8,3007.8,0.1656]
[1752211872905,7.9916,3008.7,3008.0,0.55]
[1752211873105,7.827,3008.6,3008.2,0.55]
[1752211873419,8.6097,3008.6,3008.3,0.66739268]
[1752211873584,8.6097,3008.6,3007.6,0.8202]
[1752211873779,7.832,3008.5,3008.2,0.1656]
[1752211874615,0.1656,3008.2,3007.4,0.1656]
[1752211874790,0.7827,3008.6,3007.5,0.66882222]
[1752211874990,7.842,3008.5,3006.7,0.03325905]
[1752211875190,0.2512,3008.1,3006.8,0.66934963]
[1752211875502,3.32612672,3006.5,3006.4,1.67337408]
[1752211875690,3.32612672,3006.5,3006.3,1.67337408]
[1752211875691,15.832,3006.5,3006.3,1.67337408]
[1752211876196,15.832,3006.5,3006.4,1.67337408]
[1752211876197,19.1581648,3006.5,3006.4,1.67337408]
[1752211876397,19.1581648,3006.5,3005.6,1.67337408]
[1752211876398,3.32690132,3005.8,3005.6,1.67337408]
[1752211876630,8.17769013,3005.7,3005.4,1.67337408]
[1752211876933,7.842,3005.6,3005.4,1.67337408]
[1752211877081,7.842,3005.6,3005.2,1.67337408]
[1752211877282,14.5,3006.2,3005.2,2.23339987]
[1752211877595,3.32667997,3006.0,3005.9,1.69471007]
[1752211877797,5.38096317,3006.0,3005.6,1.69471007]
[1752211878124,5.38096317,3006.0,3004.9,2.79754226]
[1752211878125,3.32689466,3005.9,3005.3,1.69471007]
[1752211878285,3.32689466,3005.9,3005.5,1.69471007]
[1752211878488,3.32689466,3005.9,3005.1,2.23339987]
[1752211878489,2.05428011,3006.0,3005.6,1.69471007]
[1752211878684,2.05428011,3006.0,3005.2,2.23339987]
[1752211878685,3.32698733,3005.8,3005.5,1.69471007]
[1752211878915,3.32698733,3005.8,3005.1,2.23339987]
[1752211878916,7.834,3005.9,3005.6,1.69471007]
[1752211879085,11.16081808,3005.9,3005.8,1.69471007]
[1752211879279,11.16081808,3005.9,3004.6,3.91302401]
[1752211879280,11.16081808,3005.9,3005.2,2.79754226]
[1752211879281,5.13955389,3005.9,3005.2,2.79754226]
[1752211879847,3.32723457,3005.5,3005.2,2.79754226]
[1752211880058,3.32723457,3005.5,3004.2,6.38638616]
[1752211880059,0.33272346,3005.4,3005.1,2.79754226]
[1752211880364,7.818,3005.3,3004.9,2.79754226]
[1752211880644,4.22502924,3005.3,3004.9,2.79754226]
[1752211880809,3.32759699,3005.2,3004.9,2.79754226]
[1752211881129,3.32690217,3005.8,3004.7,2.79754226]
[1752211881331,3.32714323,3005.6,3004.7,2.79754226]
[1752211881530,3.32714323,3005.6,3005.5,1.70943421]
[1752211881831,7.801,3005.7,3004.4,2.79754226]
[1752211882029,7.798,3005.6,3004.4,2.79754226]
[1752211882248,3.32776679,3005.1,3004.3,2.79754226]
[1752211882543,3.32793902,3004.9,3004.4,2.79754226]
[1752211882706,7.799,3005.0,3003.0,0.01]
[1752211882707,30.0,3004.6,3004.1,2.8501805]
[1752211882909,3.32944897,3003.5,3003.4,3.91302401]
[1752211883210,3.32944897,3003.5,3003.0,5.60218616]
[1752211883211,30.0,3003.2,3001.8,5.59218616]
[1752211883413,30.0,3002.7,3001.8,5.59218616]
[1752211883619,7.983,3003.1,3001.6,7.98069122]
[1752211883620,3.33144551,3001.7,3001.6,7.98069122]
[1752211883841,3.33200053,3001.2,3001.1,5.59218616]
[1752211884000,3.33266679,3000.6,3000.5,5.59218616]
[1752211884203,3.33311112,3000.2,3000.1,7.27213053]
[1752211884406,3.33311112,3000.2,2997.9,11.89340187]
[1752211884407,0.55,3000.0,2997.9,11.89340187]
[1752211884740,0.55,2998.2,2997.9,11.89340187]
[1752211885038,14.03688895,2999.9,2995.3,0.8261]
[1752211885039,0.1664,2997.9,2996.1,3.3376723]
[1752211885221,4.151,2998.8,2995.6,3.33918828]
[1752211885222,4.151,2998.8,2996.6,0.1664]
[1752211885403,0.1664,2997.8,2996.7,0.03337004]
[1752211885603,15.981,2998.7,2995.6,0.001]
[1752211885604,7.998,2997.7,2995.6,0.001]
[1752211885799,14.5,2998.5,2995.6,0.001]
[1752211886052,7.983,2998.7,2995.6,0.03438229]
[1752211886053,3.33613564,2997.5,2995.6,0.03438229]
[1752211886232,17.21457061,2998.7,2995.3,0.8261]
[1752211886233,8.047,2997.4,2995.3,0.8261]
[1752211886408,10.0,2997.2,2994.4,17.9711649]
[1752211886608,10.0,2997.2,2994.5,0.03339455]
[1752211886609,30.0,2996.3,2994.5,0.03339455]
[1752211886803,33.33769742,2996.1,2994.4,17.9711649]
[1752211887016,1.77857051,2996.2,2993.1,0.8274]
[1752211887224,1.77857051,2996.2,2993.5,3.34057123]
[1752211887430,3.33792026,2995.9,2993.1,0.8274]
[1752211887606,17.22057061,2995.8,2993.1,0.8274]
[1752211887808,17.22057061,2995.8,2994.4,3.33955158]
[1752211887809,7.989,2995.8,2994.4,3.33955158]
[1752211888108,8.192,2995.7,2993.1,0.8274]
[1752211888444,10.0,2994.7,2992.3,0.0334191]
[1752211888650,13.50560246,2994.6,2992.2,0.9232]
[1752211888935,10.0,2994.0,2992.3,0.0334191]
[1752211889103,7.996,2993.9,2992.3,3.34189072]
[1752211889305,7.996,2993.9,2991.4,0.03342916]
[1752211889306,8.275,2993.8,2991.7,3.34257645]
[1752211889506,7.996,2993.9,2991.1,9.11573792]
[1752211889852,7.996,2993.9,2991.3,1.00587379]
[1752211889853,9.0906,2993.8,2991.3,1.00587379]
[1752211890150,0.7996,2993.8,2991.3,4.34885091]
[1752211890362,8.295,2993.7,2991.4,0.03342916]
[1752211890509,8.295,2993.7,2992.2,3.34198725]
[1752211890844,7.996,2993.9,2992.3,0.0334191]
[1752211891057,7.996,2993.9,2991.3,1.00587379]
[1752211891224,8.296,2993.8,2991.9,3.34226529]
[1752211891423,8.311,2993.7,2991.2,0.943]
[1752211891749,8.319,2993.6,2991.2,0.943]
[1752211891911,3.34057227,2993.5,2991.2,0.943]